fUSD/lending_fUSD_20260614
["ID","MTS","AMOUNT","RATE_DAILY","PERIOD"]
[425047150,1781446227000,-646.65982734,0.00037992,120]
[425047149,1781446227000,-4000.0,0.00037992,30]
[425047147,1781446227000,-151.0,0.00037992,120]
[425047146,1781446227000,-249.30381975,0.00037992,120]
[425047144,1781446227000,-500.0,0.00037992,120]
[425047145,1781446227000,-349.98121204,0.00037992,120]
[425047143,1781446227000,-151.0,0.00037992,120]
[425047160,1781446227000,-194.72792766,0.00037992,120]
[425047151,1781446227000,-152.94885553,0.00037992,120]
[425047161,1781446227000,-500.0,0.00037992,120]
[425047165,1781446227000,-500.0,0.00037992,120]
[425047163,1781446227000,-151.0,0.00037992,120]
[425047182,1781446227000,-151.0,0.00037992,120]
[425047181,1781446227000,-151.0,0.00037992,120]
[425047180,1781446227000,-249.3038198,0.00037992,120]
[425047162,1781446227000,-4000.0,0.00037992,30]
[425047178,1781446227000,-349.98121204,0.00037992,120]
[425047176,1781446227000,-670.58624095,0.00037992,120]
[425047177,1781446227000,-209.40437684,0.00037992,120]
[425047175,1781446227000,-152.94885559,0.00037992,120]
[425047174,1781446227000,-151.0,0.00037992,120]
[425047179,1781446227000,-500.0,0.00037992,120]
[425047173,1781446227000,-201.93286098,0.00037992,120]
[425047171,1781446227000,-249.30381975,0.00037992,120]
[425047169,1781446227000,-349.98121204,0.00037992,120]
[425047170,1781446227000,-152.0,0.00037992,120]
[425047168,1781446227000,-201.93286098,0.00037992,120]
[425047167,1781446227000,-151.0,0.00037992,120]
[425047166,1781446227000,-151.0,0.00037992,120]
[425047164,1781446227000,-152.94885553,0.00037992,120]
[425047172,1781446227000,-1944.21450922,0.00037992,30]
[425047194,1781446228000,-500.0,0.00037992,120]
[425047191,1781446228000,-500.0,0.00037992,120]
[425047192,1781446228000,-151.0,0.00037992,120]
[425047193,1781446228000,-152.0,0.00037992,120]
[425047190,1781446228000,-151.0,0.00037992,120]
[425047189,1781446228000,-349.98121204,0.00037992,120]
[425047184,1781446228000,-500.0,0.00037992,120]
[425047187,1781446228000,-151.0,0.00037992,120]
[425047186,1781446228000,-695.39793187,0.00037992,120]
[425047185,1781446228000,-209.40437684,0.00037992,120]
[425047183,1781446228000,-152.0,0.00037992,120]
[425047196,1781446228000,-217.15233878,0.00037992,120]
[425047188,1781446228000,-217.15233878,0.00037992,120]
[425047195,1781446228000,-349.98121204,0.00037992,120]
[425047200,1781446228000,-151.0,0.00037992,120]
[425047198,1781446228000,-721.12765534,0.00037992,120]
[425047197,1781446228000,-225.18697532,0.00037992,120]
[425047210,1781446228000,-151.0,0.00037992,120]
[425047212,1781446228000,-669.14073332,0.00037992,120]
[425047209,1781446228000,-242.15909246,0.00037992,120]
[425047208,1781446228000,-151.0,0.00037992,120]
[425047206,1781446228000,-151.0,0.00037992,120]
[425047207,1781446228000,-225.18697532,0.00037992,120]
[425047202,1781446228000,-151.0,0.00037992,120]
[425047203,1781446228000,-349.98121216,0.00037992,120]
[425047204,1781446228000,-233.5188934,0.00037992,120]
[425047201,1781446228000,-500.0,0.00037992,120]
[425047211,1781446228000,-151.0,0.00037992,120]
[425047199,1781446228000,-151.0,0.00037992,120]
[425047205,1781446228000,-152.0,0.00037992,120]
[425047222,1781446229000,-500.0,0.00037992,120]
[425047228,1781446229000,-500.0,0.00037992,120]
[425047225,1781446229000,-151.0,0.00037992,120]
[425047226,1781446229000,-151.0,0.00037992,120]
[425047227,1781446229000,-151.0,0.00037992,120]
[425047224,1781446229000,-260.4103811,0.00037992,120]
[425047223,1781446229000,-240.59007826,0.00037992,120]
[425047215,1781446229000,-500.0,0.00037992,120]
[425047219,1781446229000,-151.0,0.00037992,120]
[425047220,1781446229000,-151.0,0.00037992,120]
[425047218,1781446229000,-251.11897888,0.00037992,120]
[425047217,1781446229000,-151.0,0.00037992,120]
[425047214,1781446229000,-500.0,0.00037992,120]
[425047216,1781446229000,-233.5188934,0.00037992,120]
[425047213,1781446229000,-152.0,0.00037992,120]
[425047221,1781446229000,-500.0,0.00037992,120]
[425047230,1781446229000,-270.0455652,0.00037992,120]
[425047231,1781446229000,-151.0,0.00037992,120]
[425047232,1781446229000,-151.0,0.00037992,120]
[425047229,1781446229000,-500.0,0.00037992,120]
[425047249,1781446229000,-151.0,0.00037992,120]
[425047247,1781446229000,-500.0,0.00037992,120]
[425047246,1781446229000,-151.0,0.00037992,120]
[425047244,1781446229000,-500.0,0.00037992,120]
[425047245,1781446229000,-151.0,0.00037992,120]
[425047243,1781446229000,-500.0,0.00037992,120]
[425047241,1781446229000,-151.0,0.00037992,120]
[425047248,1781446229000,-500.0,0.00037992,120]
[425047240,1781446229000,-500.0,0.00037992,120]
[425047239,1781446229000,-500.0,0.00037992,120]
[425047236,1781446229000,-500.0,0.00037992,120]
[425047238,1781446229000,-151.0,0.00037992,120]
[425047237,1781446229000,-151.0,0.00037992,120]
[425047235,1781446229000,-500.0,0.00037992,120]
[425047234,1781446229000,-293.09279179,0.00037992,120]
[425047233,1781446229000,-151.0,0.00037992,120]
[425047242,1781446229000,-151.0,0.00037992,120]
[425047267,1781446230000,-151.0,0.00037992,120]
[425047264,1781446230000,-151.0,0.00037992,120]
[425047263,1781446230000,-100000.0,0.00037992,30]
[425047261,1781446230000,-500.0,0.00037992,120]
[425047262,1781446230000,-151.0,0.00037992,120]
[425047260,1781446230000,-151.0,0.00037992,120]
[425047259,1781446230000,-151.0,0.00037992,120]
[425047255,1781446230000,-500.0,0.00037992,120]
[425047257,1781446230000,-500.0,0.00037992,120]
[425047256,1781446230000,-500.0,0.00037992,120]
[425047254,1781446230000,-703.24357751,0.00037992,120]
[425047253,1781446230000,-500.0,0.00037992,120]
[425047265,1781446230000,-500.0,0.00037992,120]
[425047251,1781446230000,-500.0,0.00037992,120]
[425047250,1781446230000,-500.0,0.00037992,120]
[425047258,1781446230000,-500.0,0.00037992,120]
[425047266,1781446230000,-151.0,0.00037992,120]
[425047252,1781446230000,-500.0,0.00037992,120]
[425047271,1781446230000,-500.0,0.00037992,120]
[425047285,1781446230000,-500.0,0.00037992,120]
[425047284,1781446230000,-251.55461454,0.00037992,120]
[425047283,1781446230000,-500.0,0.00037992,120]
[425047280,1781446230000,-500.0,0.00037992,120]
[425047282,1781446230000,-151.0,0.00037992,120]
[425047281,1781446230000,-151.0,0.00037992,120]
[425047279,1781446230000,-151.0,0.00037992,120]
[425047277,1781446230000,-500.0,0.00037992,120]
[425047268,1781446230000,-500.0,0.00037992,120]
[425047278,1781446230000,-151.0,0.00037992,120]
[425047275,1781446230000,-500.0,0.00037992,120]
[425047274,1781446230000,-151.0,0.00037992,120]
[425047273,1781446230000,-500.0,0.00037992,120]
[425047272,1781446230000,-151.0,0.00037992,120]
[425047270,1781446230000,-151.0,0.00037992,120]
[425047269,1781446230000,-151.0,0.00037992,120]
[425047276,1781446230000,-151.0,0.00037992,120]
[425047288,1781446231000,-151.0,0.00037992,120]
[425047287,1781446231000,-500.0,0.00037992,120]
[425047289,1781446231000,-500.0,0.00037992,120]
[425047290,1781446231000,-151.0,0.00037992,120]
[425047291,1781446231000,-500.0,0.00037992,120]
[425047293,1781446231000,-151.0,0.00037992,120]
[425047292,1781446231000,-500.0,0.00037992,120]
[425047295,1781446231000,-151.0,0.00037992,120]
[425047300,1781446231000,-10576.18231433,0.00037992,31]
[425047296,1781446231000,-151.0,0.00037992,120]
[425047294,1781446231000,-151.0,0.00037992,120]
[425047299,1781446231000,-1135.17914499,0.00037992,120]
[425047298,1781446231000,-156.11434386,0.00037992,120]
[425047301,1781446231000,-15141.0,0.00037992,30]
[425047302,1781446231000,-12500.0,0.00037992,30]
[425047286,1781446231000,-151.0,0.00037992,120]
[425047308,1781446231000,-5852.23999901,0.00037992,120]
[425047297,1781446231000,-151.0,0.00037992,120]
[425047304,1781446231000,-100343.0,0.00037992,30]
[425047311,1781446232000,42010.68,0.00037992,30]
[425047312,1781446232000,8975.69973529,0.00037992,30]
[425047313,1781446236000,100000.0,0.00037992,30]
[425047318,1781446237000,-151.0,0.00016291,2]
[425047319,1781446237000,-152.0,0.00016291,2]
[425047317,1781446237000,-300.0,0.0001629,2]
[425047320,1781446238000,-500.0,0.00016291,2]
[425047321,1781446238000,-500.0,0.00016291,2]
[425047322,1781446238000,-500.0,0.00016291,2]
[425047324,1781446238000,-500.0,0.00016291,2]
[425047323,1781446238000,-500.0,0.00016291,2]
[425047326,1781446238000,-500.0,0.00016291,2]
[425047327,1781446238000,-500.0,0.00016291,2]
[425047325,1781446238000,-500.0,0.00016291,2]
[425047330,1781446238000,-500.0,0.00016291,2]
[425047329,1781446238000,-500.0,0.00016291,2]
[425047328,1781446238000,-500.0,0.00016291,2]
[425047338,1781446238000,-500.0,0.00016291,2]
[425047340,1781446238000,-500.0,0.00016291,2]
[425047341,1781446238000,-500.0,0.00016291,2]
[425047342,1781446238000,-500.0,0.00016291,2]
[425047344,1781446238000,-500.0,0.00016291,2]
[425047343,1781446238000,-500.0,0.00016291,2]
[425047345,1781446238000,-397.0,0.00016291,2]
[425047346,1781446238000,-151.0,0.00016291,2]
[425047347,1781446238000,-103.0,0.00016291,2]
[425047334,1781446238000,-500.0,0.00016291,2]
[425047348,1781446238000,-500.0,0.00016291,2]
[425047358,1781446239000,-267.10201563,0.00016291,2]
[425047355,1781446239000,-500.0,0.00016291,2]
[425047357,1781446239000,-500.0,0.00016291,2]
[425047356,1781446239000,-500.0,0.00016291,2]
[425047350,1781446239000,-500.0,0.00016291,2]
[425047352,1781446239000,-500.0,0.00016291,2]
[425047353,1781446239000,-500.0,0.00016291,2]
[425047351,1781446239000,-500.0,0.00016291,2]
[425047359,1781446239000,-500.0,0.00016291,2]
[425047354,1781446239000,-500.0,0.00016291,2]
[425047360,1781446239000,-500.0,0.00016291,2]
[425047349,1781446239000,-500.0,0.00016291,2]
[425047361,1781446239000,-500.0,0.00016291,2]
[425047362,1781446239000,-500.0,0.00016291,2]
[425047373,1781446239000,160.0,0.00016291,2]
[425047370,1781446239000,-287.42835187,0.00016291,2]
[425047371,1781446239000,-207.8143075,0.00016291,2]
[425047368,1781446239000,-257.11776286,0.00016291,2]
[425047372,1781446239000,-344.56,0.00016296,2]
[425047366,1781446239000,-500.0,0.00016291,2]
[425047367,1781446239000,-500.0,0.00016291,2]
[425047364,1781446239000,-500.0,0.00016291,2]
[425047365,1781446239000,-221.78022151,0.00016291,2]
[425047363,1781446239000,-500.0,0.00016291,2]
[425047369,1781446239000,-242.88223714,0.00016291,2]
[425047389,1781446240000,-330.20026812,0.00017425,2]
[425047383,1781446240000,-633.17,0.00016438,2]
[425047384,1781446240000,-150.0,0.00016458,2]
[425047390,1781446240000,-106.61878672,0.00017805,2]
[425047388,1781446240000,-264.97973188,0.00017425,2]
[425047387,1781446240000,-614.18,0.00016932,2]
[425047386,1781446240000,-229.71,0.00016785,2]
[425047392,1781446240000,-200.0,0.00017919,2]
[425047385,1781446240000,-150.0,0.00016621,2]
[425047398,1781446240000,-1334.19042388,0.00018262,2]
[425047394,1781446240000,-500.0,0.00018122,2]
[425047393,1781446240000,-500.0,0.00018122,2]
[425047396,1781446240000,-1197.24305983,0.00018223,2]
[425047395,1781446240000,-345.64958057,0.00018122,2]
[425047397,1781446240000,-1500.0,0.00018262,2]
[425047400,1781446240000,-18.77046816,0.00018322,2]
[425047399,1781446240000,-429.64957612,0.00018262,2]
[425047391,1781446240000,-212.38121328,0.00017805,2]
[425047406,1781446243000,-413.37073318,0.00018322,2]
[425047407,1781446243000,-86.62926682,0.00018322,2]
[425047405,1781446243000,-481.22953184,0.00018322,2]
[425047408,1781446243000,-449.21423987,0.00018322,2]
[425047410,1781446243000,-500.0,0.00018322,2]
[425047409,1781446243000,-50.78576013,0.00018322,2]
[425047412,1781446243000,-248.02881996,0.00018322,2]
[425047415,1781446243000,-147.13119004,0.00018322,2]
[425047416,1781446243000,-352.86880996,0.00018322,2]
[425047414,1781446243000,-418.86881996,0.00018322,2]
[425047413,1781446243000,-81.13118004,0.00018322,2]
[425047417,1781446243000,-245.73300375,0.00018382,2]
[425047411,1781446243000,-251.97118004,0.00018322,2]
[425047433,1781446245000,-518.94,0.00018383,2]
[425047430,1781446245000,-500.0,0.00018383,2]
[425047432,1781446245000,-500.0,0.00018383,2]
[425047431,1781446245000,-500.0,0.00018383,2]
[425047428,1781446245000,-500.0,0.00018383,2]
[425047429,1781446245000,-500.0,0.00018383,2]
[425047426,1781446245000,-353.1429872,0.00018383,2]
[425047434,1781446245000,-500.0,0.00018383,2]
[425047425,1781446245000,-215.58819624,0.00018383,2]
[425047424,1781446245000,151.0,0.00016291,2]
[425047423,1781446245000,-284.41180376,0.00018383,2]
[425047422,1781446245000,-54.26699625,0.00018382,2]
[425047427,1781446245000,-158.32219869,0.00018383,2]
[425047435,1781446245000,-500.0,0.00018383,2]
[425047446,1781446245000,-308.98613564,0.000189,2]
[425047436,1781446245000,-500.0,0.00018383,2]
[425047450,1781446245000,-5733.4,0.00018955,2]
[425047449,1781446245000,-5733.4,0.00018955,2]
[425047451,1781446245000,-20328.21656949,0.00018956,2]
[425047447,1781446245000,-500.0,0.00018955,2]
[425047444,1781446245000,-1555.5,0.0001881,2]
[425047442,1781446245000,-500.0,0.00018791,2]
[425047448,1781446245000,-500.0,0.00018955,2]
[425047441,1781446245000,-500.0,0.00018791,2]
[425047440,1781446245000,-512.66985229,0.00018791,2]
[425047443,1781446245000,-500.0,0.00018791,2]
[425047439,1781446245000,-177.05,0.000186,2]
[425047437,1781446245000,-500.0,0.00018383,2]
[425047438,1781446245000,-150.0,0.00018477,2]
[425047445,1781446245000,-1654.91385263,0.000189,2]
[425047452,1781446246000,-2683.09567034,0.00018956,2]
[425047473,1781446265000,-2865.66491009,0.000209,30]
[425047470,1781446265000,-264.97612896,0.0002,30]
[425047471,1781446265000,-1414.32710691,0.0002041,30]
[425047472,1781446265000,-300.0,0.00020795,30]
[425047475,1781446265000,-1167.45,0.000276,30]
[425047478,1781446265000,-901.56,0.00027781,30]
[425047477,1781446265000,-1533.1,0.00027701,30]
[425047476,1781446265000,-1148.34,0.00027701,30]
[425047474,1781446265000,-150.0,0.000274,30]
[425047490,1781446266000,-231.35,0.00028617,30]
[425047491,1781446266000,-552.0,0.00028681,30]
[425047492,1781446266000,-551.0,0.00028687,30]
[425047488,1781446266000,-1167.45,0.00028445,30]
[425047487,1781446266000,-231.35,0.00028386,30]
[425047486,1781446266000,-231.37,0.00028163,30]
[425047484,1781446266000,-222.82961897,0.00028033,30]
[425047483,1781446266000,-320.76,0.00028,30]
[425047482,1781446266000,-231.37,0.00027933,30]
[425047480,1781446266000,-910.5,0.0002788,30]
[425047481,1781446266000,-231.35,0.00027924,30]
[425047479,1781446266000,-1533.71,0.00027799,30]
[425047489,1781446266000,-901.56,0.00028566,30]
[425047494,1781446266000,-4573.72606641,0.00028767,31]
[425047485,1781446266000,-231.35,0.00028155,30]
[425047495,1781446266000,-231.35,0.00028848,30]
[425047507,1781446266000,-158.0,0.00028996,30]
[425047508,1781446266000,-166.88897039,0.00029,30]
[425047506,1781446266000,-236.0,0.00028996,30]
[425047504,1781446266000,-151.0,0.00028996,30]
[425047505,1781446266000,-426.0,0.00028996,30]
[425047503,1781446266000,-225.0,0.00028996,30]
[425047493,1781446266000,-550.0,0.0002872,30]
[425047501,1781446266000,-1390.0,0.00028996,30]
[425047502,1781446266000,-152.0,0.00028996,30]
[425047499,1781446266000,-157.0,0.00028996,30]
[425047498,1781446266000,-154.0,0.00028996,30]
[425047496,1781446266000,-565.0,0.00028862,30]
[425047497,1781446266000,-520.0,0.00028862,30]
[425047500,1781446266000,-517.0,0.00028996,30]
[425047521,1781446267000,-158.0,0.00029996,30]
[425047523,1781446267000,-775.39608008,0.0003,60]
[425047519,1781446267000,-426.0,0.00029996,30]
[425047518,1781446267000,-151.0,0.00029996,30]
[425047517,1781446267000,-225.0,0.00029996,30]
[425047515,1781446267000,-1390.0,0.00029996,30]
[425047512,1781446267000,-154.0,0.00029996,30]
[425047513,1781446267000,-157.0,0.00029996,30]
[425047514,1781446267000,-517.0,0.00029996,30]
[425047522,1781446267000,-369.55267,0.0003,30]
[425047511,1781446267000,-901.56,0.00029351,30]
[425047509,1781446267000,-231.35,0.00029078,30]
[425047510,1781446267000,-1167.45,0.00029291,30]
[425047516,1781446267000,-152.0,0.00029996,30]
[425047524,1781446267000,-9990.0,0.0003,30]
[425047520,1781446267000,-236.0,0.00029996,30]
[425047526,1781446267000,-1400.3030448,0.0003,30]
[425047525,1781446267000,-11454.22357623,0.0003,30]
[425047540,1781446267000,-150.0,0.00030137,120]
[425047541,1781446267000,-260.0,0.00030137,120]
[425047539,1781446267000,-191.0,0.00030137,120]
[425047537,1781446267000,-271.0,0.00030137,120]
[425047536,1781446267000,-150.0,0.00030137,120]
[425047535,1781446267000,-280.0,0.00030137,120]
[425047534,1781446267000,-400.0,0.00030137,120]
[425047538,1781446267000,-150.0,0.00030137,120]
[425047533,1781446267000,-400.0,0.00030137,120]
[425047531,1781446267000,-520.0,0.00030131,30]
[425047530,1781446267000,-657.0,0.00030131,30]
[425047529,1781446267000,-573.0,0.0003009,30]
[425047528,1781446267000,-550.0,0.0003009,30]
[425047527,1781446267000,-561.0,0.00030057,30]
[425047532,1781446267000,-4023.0,0.00030137,120]
[425047553,1781446268000,-624.0,0.00030232,30]
[425047555,1781446268000,-520.0,0.00030232,30]
[425047554,1781446268000,-565.0,0.00030232,30]
[425047552,1781446268000,-186.0,0.00030199,120]
[425047551,1781446268000,-250.0,0.00030199,120]
[425047549,1781446268000,-188.0,0.00030199,120]
[425047550,1781446268000,-250.0,0.00030199,120]
[425047547,1781446268000,-200.0,0.00030199,120]
[425047546,1781446268000,-150.0,0.00030137,30]
[425047545,1781446268000,-209.0,0.00030137,120]
[425047544,1781446268000,-220.0,0.00030137,120]
[425047542,1781446268000,-250.0,0.00030137,120]
[425047543,1781446268000,-250.0,0.00030137,120]
[425047556,1781446268000,-182.41878937,0.00030368,30]
[425047548,1781446268000,-200.0,0.00030199,120]
[425047559,1781446268000,-191.0,0.0003041,120]
[425047570,1781446268000,-150.0,0.00030822,30]
[425047558,1781446268000,-500.0,0.0003041,120]
[425047575,1781446268000,-815.0,0.000309,120]
[425047573,1781446268000,-200.0,0.000309,120]
[425047557,1781446268000,-150.0,0.00030368,30]
[425047572,1781446268000,-318.0,0.000309,120]
[425047571,1781446268000,-641.4,0.000309,120]
[425047569,1781446268000,-280.0,0.00030787,120]
[425047567,1781446268000,-150.0,0.00030787,120]
[425047574,1781446268000,-277.0,0.000309,120]
[425047566,1781446268000,-3060.0,0.00030787,120]
[425047565,1781446268000,-3150.0,0.00030787,120]
[425047564,1781446268000,-3150.0,0.00030787,120]
[425047563,1781446268000,-500.0,0.00030684,120]
[425047560,1781446268000,-150.0,0.00030479,30]
[425047562,1781446268000,-1033.70647308,0.00030642,30]
[425047561,1781446268000,-15516.83,0.00030616,90]
[425047568,1781446268000,-270.0,0.00030787,120]
[425047584,1781446269000,-225.0,0.00030996,30]
[425047586,1781446269000,-426.0,0.00030996,30]
[425047585,1781446269000,-151.0,0.00030996,30]
[425047583,1781446269000,-152.0,0.00030996,30]
[425047582,1781446269000,-1390.0,0.00030996,30]
[425047578,1781446269000,-500.0,0.00030958,120]
[425047581,1781446269000,-517.0,0.00030996,30]
[425047579,1781446269000,-154.0,0.00030996,30]
[425047577,1781446269000,-559.0,0.000309,120]
[425047576,1781446269000,-700.0,0.000309,120]
[425047587,1781446269000,-236.0,0.00030996,30]
[425047580,1781446269000,-157.0,0.00030996,30]
[425047589,1781446269000,-5000.0,0.00031,30]
[425047600,1781446269000,-1700.0,0.00031506,120]
[425047590,1781446269000,-1148.34,0.00031131,30]
[425047588,1781446269000,-158.0,0.00030996,30]
[425047602,1781446269000,-1612.0,0.00031506,120]
[425047601,1781446269000,-1700.0,0.00031506,120]
[425047599,1781446269000,-500.0,0.00031506,120]
[425047598,1781446269000,-910.5,0.0003125,30]
[425047597,1781446269000,-247.0,0.00031232,120]
[425047603,1781446269000,-12003.349,0.000316,30]
[425047594,1781446269000,-500.0,0.00031232,120]
[425047596,1781446269000,-350.0,0.00031232,120]
[425047592,1781446269000,-150.0,0.00031164,30]
[425047593,1781446269000,-1533.71,0.00031196,30]
[425047591,1781446269000,-1533.1,0.00031131,30]
[425047595,1781446269000,-350.0,0.00031232,120]
[425047612,1781446270000,-178.0,0.00031996,30]
[425047618,1781446270000,-158.0,0.00031996,30]
[425047617,1781446270000,-236.0,0.00031996,30]
[425047615,1781446270000,-151.0,0.00031996,30]
[425047616,1781446270000,-426.0,0.00031996,30]
[425047614,1781446270000,-225.0,0.00031996,30]
[425047613,1781446270000,-152.0,0.00031996,30]
[425047605,1781446270000,-500.0,0.0003178,120]
[425047608,1781446270000,-154.0,0.00031996,30]
[425047609,1781446270000,-157.0,0.00031996,30]
[425047610,1781446270000,-517.0,0.00031996,30]
[425047607,1781446270000,-641.1,0.000319,120]
[425047606,1781446270000,-200.99295396,0.00031781,30]
[425047604,1781446270000,-12003.349,0.000316,30]
[425047611,1781446270000,-1390.0,0.00031996,30]
[425047619,1781446270000,-189.9214738,0.00032,120]
[425047620,1781446270000,-192.78067843,0.00032,120]
[425047624,1781446270000,-324.31386013,0.00032,120]
[425047621,1781446270000,-188.6840366,0.00032,120]
[425047636,1781446270000,-2254.57908756,0.00032,120]
[425047638,1781446270000,-500.0,0.00032054,120]
[425047634,1781446270000,-100000.0,0.00032,60]
[425047635,1781446270000,-160.0,0.00032,120]
[425047633,1781446270000,-2569.0807774,0.00032,33]
[425047632,1781446270000,-693.0,0.00032,120]
[425047631,1781446270000,-370.0,0.00032,30]
[425047637,1781446270000,-156.0,0.00032,30]
[425047629,1781446270000,-262.92494451,0.00032,120]
[425047628,1781446270000,-162.88044551,0.00032,120]
[425047626,1781446270000,-161.2155328,0.00032,120]
[425047627,1781446270000,-185.65194979,0.00032,120]
[425047625,1781446270000,-329.06141302,0.00032,120]
[425047623,1781446270000,-622.5674391,0.00032,120]
[425047622,1781446270000,-164.58473458,0.00032,120]
[425047630,1781446270000,-578.76766359,0.00032,120]
[425047653,1781446271000,-12618.25,0.000325,30]
[425047650,1781446271000,-12618.252,0.000325,30]
[425047651,1781446271000,-12618.252,0.000325,30]
[425047649,1781446271000,-150.0,0.000325,120]
[425047652,1781446271000,-12618.252,0.000325,30]
[425047647,1781446271000,-355.88096765,0.00032486,60]
[425047648,1781446271000,-1000.0,0.000325,120]
[425047640,1781446271000,-100000.0,0.00032232,120]
[425047645,1781446271000,-500.0,0.00032328,120]
[425047644,1781446271000,-30207.18565028,0.000323,120]
[425047642,1781446271000,-96000.0,0.00032232,60]
[425047641,1781446271000,-100000.0,0.00032232,30]
[425047639,1781446271000,-200.99295396,0.00032055,30]
[425047654,1781446271000,-500.0,0.000325,120]
[425047646,1781446271000,-200.99295396,0.00032329,30]
[425047655,1781446271000,-500.0,0.00032602,120]
[425047643,1781446271000,-177.31127843,0.00032293,30]
[425047657,1781446271000,-25405.47057991,0.000328,30]
[425047672,1781446271000,-500.0,0.00032876,120]
[425047670,1781446271000,-500.0,0.00032876,120]
[425047668,1781446271000,-500.0,0.00032876,120]
[425047669,1781446271000,-500.0,0.00032876,120]
[425047671,1781446271000,-500.0,0.00032876,120]
[425047667,1781446271000,-500.0,0.00032876,120]
[425047666,1781446271000,-500.0,0.00032876,120]
[425047656,1781446271000,-221.401868,0.00032603,120]
[425047665,1781446271000,-500.0,0.00032876,120]
[425047663,1781446271000,-500.0,0.00032876,120]
[425047662,1781446271000,-500.0,0.00032876,120]
[425047661,1781446271000,-500.0,0.00032876,120]
[425047660,1781446271000,-500.0,0.00032876,120]
[425047658,1781446271000,-203.0,0.0003286,30]
[425047659,1781446271000,-2819.35012647,0.00032876,120]
[425047664,1781446271000,-500.0,0.00032876,120]
[425047691,1781446272000,-151.0,0.00032996,30]
[425047687,1781446272000,-1390.0,0.00032996,30]
[425047686,1781446272000,-517.0,0.00032996,30]
[425047685,1781446272000,-157.0,0.00032996,30]
[425047682,1781446272000,-5000.0,0.00032957,30]
[425047683,1781446272000,-25193.37841667,0.00032967,120]
[425047684,1781446272000,-154.0,0.00032996,30]
[425047680,1781446272000,-164.75,0.000329,120]
[425047679,1781446272000,-178.69,0.000329,120]
[425047678,1781446272000,-641.1,0.000329,120]
[425047677,1781446272000,-200.99295396,0.00032877,30]
[425047675,1781446272000,-500.0,0.00032876,120]
[425047676,1781446272000,-500.0,0.00032876,120]
[425047674,1781446272000,-500.0,0.00032876,120]
[425047688,1781446272000,-178.0,0.00032996,30]
[425047681,1781446272000,-240.356946,0.00032907,120]
[425047689,1781446272000,-152.0,0.00032996,30]
[425047673,1781446272000,-500.0,0.00032876,120]
[425047692,1781446272000,-426.0,0.00032996,30]
[425047707,1781446272000,-10000.0,0.00033,120]
[425047704,1781446272000,-578.76766359,0.00033,120]
[425047706,1781446272000,-4000.0,0.00033,30]
[425047705,1781446272000,-2135.41644481,0.00033,120]
[425047703,1781446272000,-262.92494451,0.00033,120]
[425047700,1781446272000,-329.06141302,0.00033,120]
[425047701,1781446272000,-161.2155328,0.00033,120]
[425047708,1781446272000,-1568.53,0.00033,30]
[425047699,1781446272000,-324.31386013,0.00033,120]
[425047702,1781446272000,-162.88044551,0.00033,120]